[Event "Titled Tuesday Blitz March 21 Late 2023"]
[White "Szyszylo, Rafal"]
[Black "Dylag, Emilia"]
[WhiteFideId "1109626"]
[BlackFideId "21805172"]
[WhiteElo "1951"]
[BlackElo "1878"]
[Result "1-0"]
[Round "03"]
[TimeControl "180+2"]
[Date "2023.03.21"]
[WhiteClock "0:00:14"]
[BlackClock "0:01:02"]

1. e4 {[%clk 0:03:00]}  e6 {[%clk 0:02:57]} 2. d4 {[%clk 0:02:59]}  d5 {[%clk 0:02:53]} 3. e5 {[%clk 0:03:00]}  c5 {[%clk 0:02:52]} 4. c3 {[%clk 0:03:00]}  Nc6 {[%clk 0:02:52]} 5. Nf3 {[%clk 0:03:00]}  Qb6 {[%clk 0:02:52]} 6. Be2 {[%clk 0:03:00]}  cxd4 {[%clk 0:02:52]} 7. cxd4 {[%clk 0:03:00]}  Bb4+ {[%clk 0:02:51]} 8. Nc3 {[%clk 0:02:58]}  Nge7 {[%clk 0:02:46]} 9. O-O {[%clk 0:02:49]}  Nf5 {[%clk 0:02:45]} 10. Na4 {[%clk 0:02:46]}  Qd8 {[%clk 0:02:38]} 11. a3 {[%clk 0:02:41]}  Be7 {[%clk 0:02:36]} 12. b4 {[%clk 0:02:40]}  O-O {[%clk 0:02:35]} 13. Bb2 {[%clk 0:02:27]}  f6 {[%clk 0:02:31]} 14. b5 {[%clk 0:02:24]}  Na5 {[%clk 0:02:28]} 15. Rc1 {[%clk 0:02:24]}  fxe5 {[%clk 0:02:14]} 16. Nxe5 {[%clk 0:02:25]}  Bd7 {[%clk 0:02:11]} 17. Bd3 {[%clk 0:02:24]}  Bd6 {[%clk 0:02:07]} 18. Nc5 {[%clk 0:02:18]}  Bxe5 {[%clk 0:01:56]} 19. dxe5 {[%clk 0:02:18]}  b6 {[%clk 0:01:52]} 20. Nb3 {[%clk 0:01:58]}  Nxb3 {[%clk 0:01:41]} 21. Qxb3 {[%clk 0:01:59]}  Qe8 {[%clk 0:01:37]} 22. a4 {[%clk 0:01:58]}  Qh5 {[%clk 0:01:31]} 23. Rc7 {[%clk 0:01:47]}  Be8 {[%clk 0:01:18]} 24. Ba3 {[%clk 0:01:34]}  Nh4 {[%clk 0:01:16]} 25. Bxf8 {[%clk 0:01:01]}  Kxf8 {[%clk 0:01:17]} 26. Qb4+ {[%clk 0:00:57]}  Kg8 {[%clk 0:01:16]} 27. Be2 {[%clk 0:00:40]}  Qg5 {[%clk 0:01:12]} 28. Qg4 {[%clk 0:00:38]}  Qxg4 {[%clk 0:01:10]} 29. Bxg4 {[%clk 0:00:39]}  Bf7 {[%clk 0:01:08]} 30. g3 {[%clk 0:00:38]}  Ng6 {[%clk 0:01:08]} 31. f4 {[%clk 0:00:38]}  Rd8 {[%clk 0:01:08]} 32. Rfc1 {[%clk 0:00:37]}  d4 {[%clk 0:01:07]} 33. Rc8 {[%clk 0:00:37]}  Rf8 {[%clk 0:01:06]} 34. Rxf8+ {[%clk 0:00:35]}  Nxf8 {[%clk 0:01:06]} 35. Rd1 {[%clk 0:00:31]}  Bg6 {[%clk 0:01:06]} 36. Rxd4 {[%clk 0:00:30]}  Kf7 {[%clk 0:01:05]} 37. Rc4 {[%clk 0:00:27]}  Bd3 {[%clk 0:01:02]} 38. Rc7+ {[%clk 0:00:28]}  Kg6 {[%clk 0:01:01]} 39. Rxa7 {[%clk 0:00:27]}  h5 {[%clk 0:01:02]} 40. Bh3 {[%clk 0:00:24]}  Bc2 {[%clk 0:01:02]} 41. a5 {[%clk 0:00:22]}  bxa5 {[%clk 0:01:01]} 42. b6 {[%clk 0:00:21]}  a4 {[%clk 0:01:00]} 43. b7 {[%clk 0:00:21]}  a3 {[%clk 0:01:01]} 44. b8=Q {[%clk 0:00:21]}  a2 {[%clk 0:01:02]} 45. Qe8+ {[%clk 0:00:20]}  Kh7 {[%clk 0:01:00]} 46. Rxa2 {[%clk 0:00:19]}  Bg6 {[%clk 0:01:00]} 47. Qxf8 {[%clk 0:00:18]}  Bf7 {[%clk 0:01:00]} 48. Ra7 {[%clk 0:00:18]}  Kh6 {[%clk 0:01:01]} 49. Qxf7 {[%clk 0:00:14]}  h4 {[%clk 0:01:01]} 50. Qxg7+ {[%clk 0:00:14]}  Kh5 {[%clk 0:01:02]} 51. g4# {[%clk 0:00:14]} 1-0


[Site "https://www.chess.com"]

[Event "Titled Tuesday Blitz March 21 Late 2023"]
[White "Ardila, Oscar Humberto"]
[Black "Jimenez Jimenez, Leandro"]
[WhiteFideId "4404742"]
[BlackFideId "6415253"]
[WhiteElo "1911"]
[BlackElo "2263"]
[Result "0-1"]
[Round "03"]
[TimeControl "180+2"]
[Date "2023.03.21"]
[WhiteClock "0:00:02"]
[BlackClock "0:00:16"]

1. d4 {[%clk 0:03:00]}  d5 {[%clk 0:02:58]} 2. Nf3 {[%clk 0:03:00]}  Nf6 {[%clk 0:02:58]} 3. e3 {[%clk 0:03:00]}  c5 {[%clk 0:02:57]} 4. c3 {[%clk 0:03:00]}  Nc6 {[%clk 0:02:56]} 5. Be2 {[%clk 0:02:59]}  cxd4 {[%clk 0:02:54]} 6. exd4 {[%clk 0:02:59]}  Bf5 {[%clk 0:02:47]} 7. O-O {[%clk 0:02:59]}  e6 {[%clk 0:02:45]} 8. Bf4 {[%clk 0:02:58]}  Bd6 {[%clk 0:02:44]} 9. Bg5 {[%clk 0:02:51]}  h6 {[%clk 0:02:43]} 10. Bh4 {[%clk 0:02:51]}  Qc7 {[%clk 0:02:42]} 11. Bxf6 {[%clk 0:02:47]}  gxf6 {[%clk 0:02:42]} 12. Na3 {[%clk 0:02:46]}  a6 {[%clk 0:02:39]} 13. Rc1 {[%clk 0:02:45]}  O-O {[%clk 0:02:36]} 14. g3 {[%clk 0:02:39]}  Rfc8 {[%clk 0:02:27]} 15. Qd2 {[%clk 0:02:37]}  Bf8 {[%clk 0:02:26]} 16. Nh4 {[%clk 0:02:37]}  Bh7 {[%clk 0:02:26]} 17. Nc2 {[%clk 0:02:28]}  b5 {[%clk 0:02:17]} 18. Ne3 {[%clk 0:02:23]}  f5 {[%clk 0:02:11]} 19. a3 {[%clk 0:01:57]}  Na5 {[%clk 0:02:08]} 20. Bd1 {[%clk 0:01:48]}  Nc4 {[%clk 0:02:00]} 21. Nxc4 {[%clk 0:01:48]}  Qxc4 {[%clk 0:01:53]} 22. Be2 {[%clk 0:01:45]}  Qc7 {[%clk 0:01:51]} 23. f4 {[%clk 0:01:40]}  Rab8 {[%clk 0:01:48]} 24. Nf3 {[%clk 0:01:35]}  a5 {[%clk 0:01:40]} 25. Ne5 {[%clk 0:01:34]}  f6 {[%clk 0:01:29]} 26. Nd3 {[%clk 0:01:24]}  Bg6 {[%clk 0:01:29]} 27. Bf3 {[%clk 0:01:19]}  Bf7 {[%clk 0:01:23]} 28. Rfe1 {[%clk 0:01:17]}  Qb6 {[%clk 0:01:20]} 29. Kg2 {[%clk 0:01:16]}  b4 {[%clk 0:01:18]} 30. axb4 {[%clk 0:01:08]}  axb4 {[%clk 0:01:18]} 31. Nxb4 {[%clk 0:00:41]}  Bxb4 {[%clk 0:01:08]} 32. cxb4 {[%clk 0:00:41]}  Rxc1 {[%clk 0:01:04]} 33. Rxc1 {[%clk 0:00:39]}  Qxb4 {[%clk 0:01:05]} 34. Rc2 {[%clk 0:00:14]}  Be8 {[%clk 0:00:40]} 35. Qxb4 {[%clk 0:00:14]}  Rxb4 {[%clk 0:00:40]} 36. Rd2 {[%clk 0:00:15]}  Bb5 {[%clk 0:00:37]} 37. Kf2 {[%clk 0:00:15]}  Kf8 {[%clk 0:00:35]} 38. Bd1 {[%clk 0:00:15]}  Ke7 {[%clk 0:00:34]} 39. Ke3 {[%clk 0:00:15]}  Kd6 {[%clk 0:00:33]} 40. Bh5 {[%clk 0:00:11]}  Bc4 {[%clk 0:00:31]} 41. Bf7 {[%clk 0:00:11]}  Rb3+ {[%clk 0:00:30]} 42. Kf2 {[%clk 0:00:11]}  Rb4 {[%clk 0:00:26]} 43. h4 {[%clk 0:00:11]}  Ra4 {[%clk 0:00:25]} 44. Bg6 {[%clk 0:00:09]}  Ra1 {[%clk 0:00:23]} 45. Bh5 {[%clk 0:00:08]}  Rf1+ {[%clk 0:00:21]} 46. Kg2 {[%clk 0:00:08]}  Rb1 {[%clk 0:00:18]} 47. Kf2 {[%clk 0:00:08]}  Bb3 {[%clk 0:00:18]} 48. Be8 {[%clk 0:00:06]}  Rc1 {[%clk 0:00:17]} 49. Bb5 {[%clk 0:00:05]}  Bc2 {[%clk 0:00:16]} 50. Ke3 {[%clk 0:00:02]}  Be4 {[%clk 0:00:16]} 0-1


[Site "https://www.chess.com"]

[Event "Titled Tuesday Blitz March 21 Late 2023"]
[White "Rios Escobar, Adan"]
[Black "Barria Santos, Jose Guilherme"]
[WhiteFideId "3403645"]
[BlackFideId "1939300"]
[WhiteElo "2398"]
[BlackElo "2301"]
[Result "1-0"]
[Round "03"]
[TimeControl "180+2"]
[Date "2023.03.21"]
[WhiteClock "0:00:04"]
[BlackClock "0:00:01"]

1. d4 {[%clk 0:02:51]}  Nf6 {[%clk 0:02:59]} 2. g3 {[%clk 0:02:51]}  g6 {[%clk 0:03:00]} 3. Bg2 {[%clk 0:02:51]}  Bg7 {[%clk 0:03:00]} 4. e4 {[%clk 0:02:52]}  d6 {[%clk 0:03:00]} 5. Ne2 {[%clk 0:02:52]}  O-O {[%clk 0:03:01]} 6. O-O {[%clk 0:02:52]}  Nc6 {[%clk 0:02:57]} 7. Nbc3 {[%clk 0:02:53]}  e5 {[%clk 0:02:55]} 8. dxe5 {[%clk 0:02:54]}  Nxe5 {[%clk 0:02:54]} 9. f4 {[%clk 0:02:53]}  Nc6 {[%clk 0:02:41]} 10. h3 {[%clk 0:02:53]}  Be6 {[%clk 0:02:30]} 11. a4 {[%clk 0:02:34]}  Nd7 {[%clk 0:02:19]} 12. Ra3 {[%clk 0:02:30]}  Nb6 {[%clk 0:02:01]} 13. b3 {[%clk 0:02:27]}  f5 {[%clk 0:01:40]} 14. a5 {[%clk 0:02:22]}  Nd7 {[%clk 0:01:38]} 15. a6 {[%clk 0:02:18]}  Qc8 {[%clk 0:01:09]} 16. exf5 {[%clk 0:01:43]}  Bxf5 {[%clk 0:01:07]} 17. axb7 {[%clk 0:01:40]}  Qxb7 {[%clk 0:00:47]} 18. Qd5+ {[%clk 0:01:38]}  Kh8 {[%clk 0:00:46]} 19. Qxc6 {[%clk 0:01:38]}  Qb4 {[%clk 0:00:43]} 20. Nd5 {[%clk 0:01:11]}  Qc5+ {[%clk 0:00:18]} 21. Qxc5 {[%clk 0:01:08]}  Nxc5 {[%clk 0:00:19]} 22. Nxc7 {[%clk 0:01:00]}  Rac8 {[%clk 0:00:19]} 23. Nb5 {[%clk 0:00:52]}  Bxc2 {[%clk 0:00:17]} 24. Nxd6 {[%clk 0:00:44]}  Rcd8 {[%clk 0:00:16]} 25. Nb7 {[%clk 0:00:40]}  Nxb7 {[%clk 0:00:12]} 26. Bxb7 {[%clk 0:00:41]}  Rb8 {[%clk 0:00:12]} 27. Bd5 {[%clk 0:00:36]}  Bd3 {[%clk 0:00:11]} 28. Bc4 {[%clk 0:00:34]}  Bxc4 {[%clk 0:00:10]} 29. bxc4 {[%clk 0:00:35]}  Rfc8 {[%clk 0:00:10]} 30. Rxa7 {[%clk 0:00:22]}  Re8 {[%clk 0:00:10]} 31. Kf2 {[%clk 0:00:14]}  Rb3 {[%clk 0:00:10]} 32. Ra3 {[%clk 0:00:08]}  Rb7 {[%clk 0:00:07]} 33. Re3 {[%clk 0:00:08]}  Ra8 {[%clk 0:00:06]} 34. Rd1 {[%clk 0:00:06]}  Kg8 {[%clk 0:00:04]} 35. Rd5 {[%clk 0:00:06]}  Ra2 {[%clk 0:00:04]} 36. Rb5 {[%clk 0:00:05]}  Rc7 {[%clk 0:00:03]} 37. c5 {[%clk 0:00:05]}  Bd4 {[%clk 0:00:01]} 38. Rb8+ {[%clk 0:00:05]}  Kg7 {[%clk 0:00:01]} 39. Re8 {[%clk 0:00:04]} 1-0


[Site "https://www.chess.com"]

[Event "Titled Tuesday Blitz March 21 Late 2023"]
[White "Liu, Casper"]
[Black "Khatena, Moshe"]
[WhiteFideId "1454153"]
[BlackFideId "2010461"]
[WhiteElo "2221"]
[BlackElo "2216"]
[Result "1-0"]
[Round "03"]
[TimeControl "180+2"]
[Date "2023.03.21"]
[WhiteClock "0:02:23"]
[BlackClock "0:02:03"]

1. d4 {[%clk 0:02:52]}  b5 {[%clk 0:02:59]} 2. a4 {[%clk 0:02:49]}  b4 {[%clk 0:02:58]} 3. e4 {[%clk 0:02:47]}  Bb7 {[%clk 0:02:58]} 4. Bd3 {[%clk 0:02:48]}  Nf6 {[%clk 0:02:57]} 5. Qe2 {[%clk 0:02:40]}  d6 {[%clk 0:02:51]} 6. a5 {[%clk 0:02:38]}  a6 {[%clk 0:02:47]} 7. Bd2 {[%clk 0:02:37]}  Nc6 {[%clk 0:02:44]} 8. Nf3 {[%clk 0:02:38]}  e5 {[%clk 0:02:40]} 9. d5 {[%clk 0:02:38]}  Nd4 {[%clk 0:02:31]} 10. Nxd4 {[%clk 0:02:37]}  exd4 {[%clk 0:02:32]} 11. Bxb4 {[%clk 0:02:36]}  Be7 {[%clk 0:02:25]} 12. O-O {[%clk 0:02:36]}  O-O {[%clk 0:02:25]} 13. Nd2 {[%clk 0:02:36]}  c5 {[%clk 0:02:25]} 14. dxc6 {[%clk 0:02:34]}  Bxc6 {[%clk 0:02:25]} 15. Nf3 {[%clk 0:02:29]}  Rb8 {[%clk 0:02:24]} 16. Ba3 {[%clk 0:02:29]}  d5 {[%clk 0:02:16]} 17. Nxd4 {[%clk 0:02:25]}  dxe4 {[%clk 0:02:03]} 18. Nxc6 {[%clk 0:02:25]}  exd3 {[%clk 0:02:03]} 19. cxd3 {[%clk 0:02:23]} 1-0


[Site "https://www.chess.com"]

[Event "Titled Tuesday Blitz March 21 Late 2023"]
[White "Lopez Perdomo, Juan David"]
[Black "Toktomushev, Teimur"]
[WhiteFideId "4405137"]
[BlackFideId "14176726"]
[WhiteElo "1965"]
[BlackElo "2116"]
[Result "0-1"]
[Round "03"]
[TimeControl "180+2"]
[Date "2023.03.21"]
[WhiteClock "0:02:17"]
[BlackClock "0:01:29"]

1. e4 {[%clk 0:03:00]}  c5 {[%clk 0:03:00]} 2. d4 {[%clk 0:03:01]}  cxd4 {[%clk 0:03:00]} 3. c3 {[%clk 0:03:02]}  dxc3 {[%clk 0:03:00]} 4. Nxc3 {[%clk 0:03:03]}  e6 {[%clk 0:03:00]} 5. Nf3 {[%clk 0:03:03]}  Nc6 {[%clk 0:03:00]} 6. Bc4 {[%clk 0:03:04]}  Bb4 {[%clk 0:03:01]} 7. O-O {[%clk 0:03:05]}  Nge7 {[%clk 0:03:00]} 8. Bg5 {[%clk 0:03:05]}  O-O {[%clk 0:03:00]} 9. Qe2 {[%clk 0:03:04]}  Bxc3 {[%clk 0:02:59]} 10. bxc3 {[%clk 0:03:04]}  d5 {[%clk 0:02:59]} 11. exd5 {[%clk 0:03:04]}  exd5 {[%clk 0:03:00]} 12. Rad1 {[%clk 0:02:59]}  Qc7 {[%clk 0:02:33]} 13. Bxd5 {[%clk 0:02:50]}  Nxd5 {[%clk 0:02:33]} 14. Rxd5 {[%clk 0:02:51]}  Be6 {[%clk 0:02:27]} 15. Rd3 {[%clk 0:02:47]}  Bc4 {[%clk 0:02:22]} 16. Rfd1 {[%clk 0:02:39]}  Bxd3 {[%clk 0:02:15]} 17. Rxd3 {[%clk 0:02:40]}  Rfe8 {[%clk 0:02:12]} 18. Qd2 {[%clk 0:02:37]}  Ne5 {[%clk 0:01:51]} 19. Bf4 {[%clk 0:02:20]}  Nxf3+ {[%clk 0:01:33]} 20. Rxf3 {[%clk 0:02:21]}  Rad8 {[%clk 0:01:30]} 21. Qc2 {[%clk 0:02:17]}  Re1# {[%clk 0:01:29]} 0-1


[Site "https://www.chess.com"]

[Event "Titled Tuesday Blitz March 21 Late 2023"]
[White "Hoffmann, Asa"]
[Black "Sabar, Ethmane Daouda"]
[WhiteFideId "2001470"]
[BlackFideId "19600097"]
[WhiteElo "2117"]
[BlackElo "1950"]
[Result "1-0"]
[Round "03"]
[TimeControl "180+2"]
[Date "2023.03.21"]
[WhiteClock "0:02:04"]
[BlackClock "0:02:26"]

1. d4 {[%clk 0:02:58]}  d5 {[%clk 0:02:59]} 2. Bg5 {[%clk 0:02:55]}  c5 {[%clk 0:02:57]} 3. dxc5 {[%clk 0:02:53]}  Qa5+ {[%clk 0:02:56]} 4. Nc3 {[%clk 0:02:49]}  Qxc5 {[%clk 0:02:57]} 5. Qxd5 {[%clk 0:02:48]}  Qb4 {[%clk 0:02:51]} 6. O-O-O {[%clk 0:02:42]}  Nc6 {[%clk 0:02:50]} 7. e4 {[%clk 0:02:27]}  Be6 {[%clk 0:02:49]} 8. Qb5 {[%clk 0:02:20]}  a6 {[%clk 0:02:49]} 9. Qxb4 {[%clk 0:02:18]}  Nxb4 {[%clk 0:02:50]} 10. a3 {[%clk 0:02:17]}  Nc6 {[%clk 0:02:48]} 11. Nd5 {[%clk 0:02:16]}  Rc8 {[%clk 0:02:44]} 12. Nf3 {[%clk 0:02:10]}  h6 {[%clk 0:02:40]} 13. Bf4 {[%clk 0:02:08]}  f6 {[%clk 0:02:25]} 14. Nc7+ {[%clk 0:02:05]}  Kf7 {[%clk 0:02:25]} 15. Nxe6 {[%clk 0:02:04]}  Kxe6 {[%clk 0:02:26]} 16. Bc4# {[%clk 0:02:04]} 1-0


[Site "https://www.chess.com"]

[Event "Titled Tuesday Blitz March 21 Late 2023"]
[White "Gallegos Diaz, Carlos Alberto"]
[Black "salgadoLO"]
[WhiteFideId "3900886"]
[WhiteElo "2362"]
[BlackElo "2183"]
[Result "1/2-1/2"]
[Round "03"]
[TimeControl "180+2"]
[Date "2023.03.21"]
[WhiteClock "0:00:31"]
[BlackClock "0:00:09"]

1. e4 {[%clk 0:02:29]}  c5 {[%clk 0:02:58]} 2. Nf3 {[%clk 0:02:29]}  e6 {[%clk 0:02:58]} 3. d3 {[%clk 0:02:29]}  Nc6 {[%clk 0:02:54]} 4. Nbd2 {[%clk 0:02:30]}  g6 {[%clk 0:02:54]} 5. Be2 {[%clk 0:02:31]}  Bg7 {[%clk 0:02:54]} 6. O-O {[%clk 0:02:31]}  Nge7 {[%clk 0:02:54]} 7. c3 {[%clk 0:02:31]}  d5 {[%clk 0:02:52]} 8. Re1 {[%clk 0:02:32]}  O-O {[%clk 0:02:52]} 9. Bf1 {[%clk 0:02:29]}  b6 {[%clk 0:02:52]} 10. exd5 {[%clk 0:02:26]}  Nxd5 {[%clk 0:02:51]} 11. Nb3 {[%clk 0:02:27]}  Bb7 {[%clk 0:02:48]} 12. Bg5 {[%clk 0:02:26]}  Qc7 {[%clk 0:02:42]} 13. Bh4 {[%clk 0:02:26]}  a5 {[%clk 0:02:41]} 14. Bg3 {[%clk 0:02:26]}  Qd7 {[%clk 0:02:41]} 15. a4 {[%clk 0:02:25]}  Rad8 {[%clk 0:02:37]} 16. d4 {[%clk 0:02:25]}  cxd4 {[%clk 0:02:29]} 17. Nbxd4 {[%clk 0:02:26]}  Nxd4 {[%clk 0:02:23]} 18. Nxd4 {[%clk 0:02:25]}  Qc8 {[%clk 0:02:12]} 19. Qb3 {[%clk 0:02:14]}  Ba6 {[%clk 0:02:05]} 20. Nb5 {[%clk 0:02:05]}  Qc5 {[%clk 0:01:55]} 21. Rad1 {[%clk 0:02:02]}  Bxb5 {[%clk 0:01:43]} 22. Bxb5 {[%clk 0:01:54]}  Nc7 {[%clk 0:01:40]} 23. Qc4 {[%clk 0:01:37]}  Qxc4 {[%clk 0:01:24]} 24. Bxc4 {[%clk 0:01:37]}  Nd5 {[%clk 0:01:16]} 25. Bxd5 {[%clk 0:01:36]}  Rxd5 {[%clk 0:01:15]} 26. Rxd5 {[%clk 0:01:35]}  exd5 {[%clk 0:01:15]} 27. Bc7 {[%clk 0:01:35]}  d4 {[%clk 0:01:13]} 28. c4 {[%clk 0:01:00]}  Rc8 {[%clk 0:01:10]} 29. Bxb6 {[%clk 0:00:58]}  Rxc4 {[%clk 0:01:06]} 30. Re8+ {[%clk 0:00:57]}  Bf8 {[%clk 0:01:06]} 31. g3 {[%clk 0:00:56]}  Kg7 {[%clk 0:01:00]} 32. Rd8 {[%clk 0:00:44]}  Rxa4 {[%clk 0:00:51]} 33. Bxd4+ {[%clk 0:00:43]}  f6 {[%clk 0:00:50]} 34. Bxf6+ {[%clk 0:00:43]}  Kxf6 {[%clk 0:00:49]} 35. Rxf8+ {[%clk 0:00:43]}  Ke5 {[%clk 0:00:42]} 36. Rd8 {[%clk 0:00:24]}  Rb4 {[%clk 0:00:40]} 37. Rd2 {[%clk 0:00:24]}  g5 {[%clk 0:00:32]} 38. h3 {[%clk 0:00:23]}  h5 {[%clk 0:00:31]} 39. Kf1 {[%clk 0:00:23]}  h4 {[%clk 0:00:28]} 40. gxh4 {[%clk 0:00:20]}  Rxh4 {[%clk 0:00:25]} 41. Kg2 {[%clk 0:00:20]}  Rb4 {[%clk 0:00:24]} 42. Kg3 {[%clk 0:00:20]}  Kf5 {[%clk 0:00:21]} 43. f3 {[%clk 0:00:20]}  Kg6 {[%clk 0:00:20]} 44. Rd6+ {[%clk 0:00:19]}  Kh5 {[%clk 0:00:20]} 45. Ra6 {[%clk 0:00:19]}  Rxb2 {[%clk 0:00:18]} 46. Rxa5 {[%clk 0:00:19]}  Rb4 {[%clk 0:00:19]} 47. Rc5 {[%clk 0:00:18]}  Ra4 {[%clk 0:00:19]} 48. Re5 {[%clk 0:00:18]}  Rb4 {[%clk 0:00:19]} 49. Re4 {[%clk 0:00:19]}  Rb5 {[%clk 0:00:16]} 50. h4 {[%clk 0:00:20]}  gxh4+ {[%clk 0:00:15]} 51. Rxh4+ {[%clk 0:00:21]}  Kg5 {[%clk 0:00:15]} 52. Rg4+ {[%clk 0:00:22]}  Kf5 {[%clk 0:00:15]} 53. Rf4+ {[%clk 0:00:22]}  Kg5 {[%clk 0:00:15]} 54. Rg4+ {[%clk 0:00:23]}  Kf5 {[%clk 0:00:16]} 55. Rf4+ {[%clk 0:00:24]}  Kg5 {[%clk 0:00:16]} 56. Re4 {[%clk 0:00:25]}  Rb1 {[%clk 0:00:14]} 57. Re8 {[%clk 0:00:25]}  Rh1 {[%clk 0:00:13]} 58. Kf2 {[%clk 0:00:26]}  Rh2+ {[%clk 0:00:13]} 59. Kg3 {[%clk 0:00:26]}  Ra2 {[%clk 0:00:12]} 60. Re5+ {[%clk 0:00:27]}  Kf6 {[%clk 0:00:12]} 61. Rb5 {[%clk 0:00:28]}  Ra3 {[%clk 0:00:12]} 62. Kg4 {[%clk 0:00:27]}  Kg6 {[%clk 0:00:09]} 63. Rb6+ {[%clk 0:00:27]}  Kf7 {[%clk 0:00:09]} 64. f4 {[%clk 0:00:28]}  Ra5 {[%clk 0:00:09]} 65. f5 {[%clk 0:00:28]}  Ra1 {[%clk 0:00:08]} 66. Rb7+ {[%clk 0:00:27]}  Kf6 {[%clk 0:00:08]} 67. Rb6+ {[%clk 0:00:28]}  Kf7 {[%clk 0:00:08]} 68. Kf4 {[%clk 0:00:29]}  Rf1+ {[%clk 0:00:07]} 69. Ke4 {[%clk 0:00:29]}  Re1+ {[%clk 0:00:08]} 70. Kd5 {[%clk 0:00:29]}  Rd1+ {[%clk 0:00:08]} 71. Ke5 {[%clk 0:00:30]}  Re1+ {[%clk 0:00:08]} 72. Kf4 {[%clk 0:00:30]}  Rf1+ {[%clk 0:00:08]} 73. Kg5 {[%clk 0:00:31]}  Rg1+ {[%clk 0:00:08]} 74. Kf4 {[%clk 0:00:31]}  Rf1+ {[%clk 0:00:09]} 1/2-1/2


[Site "https://www.chess.com"]

[Event "Titled Tuesday Blitz March 21 Late 2023"]
[White "Romero Ruscalleda, Josep"]
[Black "Marcolino, Daniel Mattos"]
[WhiteFideId "2231859"]
[BlackFideId "2106841"]
[WhiteElo "2183"]
[BlackElo "2112"]
[Result "1-0"]
[Round "03"]
[TimeControl "180+2"]
[Date "2023.03.21"]
[WhiteClock "0:02:16"]
[BlackClock "0:01:46"]

1. e4 {[%clk 0:03:00]}  c6 {[%clk 0:02:59]} 2. Nc3 {[%clk 0:03:00]}  d5 {[%clk 0:03:00]} 3. Nf3 {[%clk 0:03:00]}  Bg4 {[%clk 0:02:59]} 4. h3 {[%clk 0:03:00]}  Bxf3 {[%clk 0:02:59]} 5. Qxf3 {[%clk 0:03:01]}  Nf6 {[%clk 0:02:59]} 6. exd5 {[%clk 0:02:58]}  cxd5 {[%clk 0:02:58]} 7. d4 {[%clk 0:02:58]}  e6 {[%clk 0:02:56]} 8. Ne2 {[%clk 0:02:57]}  Be7 {[%clk 0:02:44]} 9. c3 {[%clk 0:02:55]}  Nc6 {[%clk 0:02:44]} 10. Ng3 {[%clk 0:02:53]}  O-O {[%clk 0:02:43]} 11. Bd3 {[%clk 0:02:53]}  Rb8 {[%clk 0:02:40]} 12. O-O {[%clk 0:02:53]}  b5 {[%clk 0:02:39]} 13. Nh5 {[%clk 0:02:47]}  g6 {[%clk 0:02:31]} 14. Ng3 {[%clk 0:02:38]}  b4 {[%clk 0:02:25]} 15. Bf4 {[%clk 0:02:34]}  bxc3 {[%clk 0:02:21]} 16. bxc3 {[%clk 0:02:29]}  Re8 {[%clk 0:02:10]} 17. Bxb8 {[%clk 0:02:28]}  Qxb8 {[%clk 0:02:10]} 18. Rab1 {[%clk 0:02:25]}  Qc7 {[%clk 0:02:02]} 19. Bb5 {[%clk 0:02:25]}  Rc8 {[%clk 0:02:01]} 20. Bxc6 {[%clk 0:02:23]}  Qxc6 {[%clk 0:02:00]} 21. Rfc1 {[%clk 0:02:22]}  Ba3 {[%clk 0:01:58]} 22. Rc2 {[%clk 0:02:20]}  Nd7 {[%clk 0:01:57]} 23. c4 {[%clk 0:02:17]}  dxc4 {[%clk 0:01:46]} 24. Qxa3 {[%clk 0:02:16]} 1-0


[Site "https://www.chess.com"]

[Event "Titled Tuesday Blitz March 21 Late 2023"]
[White "Manu_ChessExcelsior"]
[Black "Castella Garcia, Fausto"]
[BlackFideId "3501922"]
[WhiteElo "2041"]
[BlackElo "2245"]
[Result "0-1"]
[Round "03"]
[TimeControl "180+2"]
[Date "2023.03.21"]
[WhiteClock "0:00:08"]
[BlackClock "0:00:13"]

1. e4 {[%clk 0:03:00]}  c5 {[%clk 0:02:59]} 2. g3 {[%clk 0:03:00]}  d5 {[%clk 0:02:58]} 3. exd5 {[%clk 0:03:00]}  Qxd5 {[%clk 0:02:59]} 4. Nf3 {[%clk 0:02:58]}  Bg4 {[%clk 0:02:59]} 5. Bg2 {[%clk 0:02:57]}  Qe6+ {[%clk 0:02:59]} 6. Kf1 {[%clk 0:02:57]}  Nc6 {[%clk 0:02:59]} 7. h3 {[%clk 0:02:55]}  Bh5 {[%clk 0:02:59]} 8. g4 {[%clk 0:02:35]}  Bg6 {[%clk 0:02:57]} 9. d3 {[%clk 0:02:30]}  O-O-O {[%clk 0:02:50]} 10. Nh4 {[%clk 0:02:30]}  f6 {[%clk 0:02:46]} 11. Nxg6 {[%clk 0:02:29]}  hxg6 {[%clk 0:02:46]} 12. Nc3 {[%clk 0:02:28]}  Qd7 {[%clk 0:02:42]} 13. Bf4 {[%clk 0:02:12]}  e5 {[%clk 0:02:42]} 14. Bg3 {[%clk 0:02:12]}  f5 {[%clk 0:02:33]} 15. f4 {[%clk 0:01:55]}  fxg4 {[%clk 0:02:24]} 16. hxg4 {[%clk 0:01:54]}  Rxh1+ {[%clk 0:02:22]} 17. Bxh1 {[%clk 0:01:55]}  Nf6 {[%clk 0:02:04]} 18. fxe5 {[%clk 0:01:10]}  Nxg4 {[%clk 0:01:55]} 19. Bxc6 {[%clk 0:00:59]}  bxc6 {[%clk 0:01:50]} 20. Qf3 {[%clk 0:00:58]}  Be7 {[%clk 0:01:43]} 21. Kg2 {[%clk 0:00:46]}  Rf8 {[%clk 0:01:42]} 22. Qe4 {[%clk 0:00:46]}  Kb7 {[%clk 0:01:25]} 23. e6 {[%clk 0:00:42]}  Qd4 {[%clk 0:01:26]} 24. Re1 {[%clk 0:00:36]}  Rf2+ {[%clk 0:01:19]} 25. Kh3 {[%clk 0:00:36]}  Rxc2 {[%clk 0:00:44]} 26. Qxg4 {[%clk 0:00:34]}  Qxg4+ {[%clk 0:00:38]} 27. Kxg4 {[%clk 0:00:34]}  Rxb2 {[%clk 0:00:39]} 28. Be5 {[%clk 0:00:27]}  Rg2+ {[%clk 0:00:36]} 29. Kf3 {[%clk 0:00:26]}  Rd2 {[%clk 0:00:35]} 30. Ke4 {[%clk 0:00:23]}  Rf2 {[%clk 0:00:26]} 31. Bxg7 {[%clk 0:00:22]}  g5 {[%clk 0:00:25]} 32. Ke5 {[%clk 0:00:21]}  g4 {[%clk 0:00:24]} 33. Ne4 {[%clk 0:00:21]}  Rxa2 {[%clk 0:00:21]} 34. Bf6 {[%clk 0:00:21]}  Bxf6+ {[%clk 0:00:21]} 35. Nxf6 {[%clk 0:00:21]}  g3 {[%clk 0:00:17]} 36. e7 {[%clk 0:00:21]}  g2 {[%clk 0:00:17]} 37. e8=Q {[%clk 0:00:21]}  Re2+ {[%clk 0:00:17]} 38. Rxe2 {[%clk 0:00:20]}  g1=Q {[%clk 0:00:18]} 39. Rb2+ {[%clk 0:00:20]}  Ka6 {[%clk 0:00:17]} 40. Qc8+ {[%clk 0:00:20]}  Ka5 {[%clk 0:00:16]} 41. Qc7+ {[%clk 0:00:19]}  Ka4 {[%clk 0:00:16]} 42. Qxc6+ {[%clk 0:00:20]}  Ka3 {[%clk 0:00:16]} 43. Qg2 {[%clk 0:00:17]}  Qd4+ {[%clk 0:00:16]} 44. Ke6 {[%clk 0:00:17]}  Qxb2 {[%clk 0:00:17]} 45. Qxb2+ {[%clk 0:00:14]}  Kxb2 {[%clk 0:00:17]} 46. Kd5 {[%clk 0:00:14]}  Kc3 {[%clk 0:00:18]} 47. Ke4 {[%clk 0:00:13]}  a5 {[%clk 0:00:17]} 48. Nd5+ {[%clk 0:00:12]}  Kb3 {[%clk 0:00:16]} 49. Nb6 {[%clk 0:00:13]}  a4 {[%clk 0:00:14]} 50. Kd5 {[%clk 0:00:11]}  a3 {[%clk 0:00:13]} 51. Nc4 {[%clk 0:00:08]}  a2 {[%clk 0:00:13]} 52. Nd2+ {[%clk 0:00:08]}  Kc2 {[%clk 0:00:13]} 0-1


[Site "https://www.chess.com"]